[Event "Summer Prague Open-A 2022"]
[Site "Prague"]
[Date "2022.08.08"]
[Round "5.22"]
[White "Mannion, Stephen R"]
[Black "Groh, Jiri"]
[Result "1-0"]
[ECO "B39"]
[WhiteElo "2232"]
[BlackElo "2009"]
[Annotator "RC"]
[PlyCount "133"]
[EventDate "2022.08.05"]
[EventType "swiss"]
[EventCountry "CZE"]
[SourceTitle "playchess.com"]
[Source "ChessBase"]
[SourceQuality "1"]
[TimeControl "40/5400+30:1800+30"]

1. e4 {[%emt 0:01:18]} c5 {[%emt 0:00:10]} 2. Nf3 {[%emt 0:00:06]} Nc6 {[%emt 0:00:08]} 3. d4 {[%emt 0:00:08]} cxd4 {[%emt 0:00:09]} 4. Nxd4 {[%emt 0:00:06]} g6 {[%emt 0:00:30]} 5. c4 {[%emt 0:00:16]} Bg7 {[%emt 0:00:12]} 6. Be3 {[%emt 0:00:10]} Nf6 {[%emt 0:00:08]} 7. Nc3 {[%emt 0:00:09]} Ng4 {[%emt 0:00:23]} 8. Qxg4 {[%emt 0:00:14]} Nxd4 {[%emt 0:00:07]} 9. Qd1 {[%emt 0:00:09]} e5 {[%emt 0:00:09]} 10. Bd3 {[%emt 0:00:11]} d6 {[%emt 0:00:14]} 11. O-O {[%emt 0:00:16]} Be6 {[%emt 0:00:13]} 12. Qd2 {[%emt 0:00:22]} O-O {[%emt 0:01:03]} 13. Rad1 {[%emt 0:00:20]} Qa5 {[%emt 0:00:58]} 14. b3 {[%emt 0:01:37]} Rac8 {[%emt 0:00:39]} 15. Ne2 {[%emt 0:08:23]} Qxd2 {[%emt 0:03:43]} 16. Rxd2 {[%emt 0:00:09]} f5 {[%emt 0:01:47]} 17. Bxd4 {[%emt 0:04:30]} exd4 {[%emt 0:00:42]} 18. exf5 {[%emt 0:00:11]} Bxf5 {[%emt 0:10:21]} 19. Bxf5 {[%emt 0:00:17]} Rxf5 {[%emt 0:01:10]} 20. Nxd4 {[%emt 0:00:18]} Bxd4 {[%emt 0:00:57]} 21. Rxd4 {[%emt 0:00:06]} Rc6 {[%emt 0:02:45]} 22. Rfd1 {[%emt 0:00:54]} Rf6 {[%emt 0:02:54]} 23. f3 {[%emt 0:02:57]} Kf7 {[%emt 0:00:27]} 24. Kf2 {[%emt 0:00:13]} Ke7 {[%emt 0:02:22]} 25. Re1+ {[%emt 0:00:55]} Kd7 {[%emt 0:01:55]} 26. Re2 {[%emt 0:00:19]} a5 {[%emt 0:02:37]} 27. a4 {[%emt 0:02:29]} Rc5 {[%emt 0:02:22]} 28. Red2 {[%emt 0:08:46]} Re6 {[%emt 0:05:25]} 29. Re2 {[%emt 0:05:35]} b6 {[%emt 0:02:24]} 30. Rxe6 {[%emt 0:01:24]} Kxe6 {[%emt 0:00:04]} 31. Ke3 {[%emt 0:00:10]} Rc8 {[%emt 0:01:25]} 32. Re4+ {[%emt 0:03:55]} Kd7 {[%emt 0:02:31]} 33. Rh4 {[%emt 0:03:23]} Re8+ {[%emt 0:02:39]} 34. Re4 {[%emt 0:03:51]} Rf8 {[%emt 0:00:22]} 35. Rf4 {[%emt 0:00:32]} Re8+ {[%emt 0:00:21]} 36. Kd3 {[%emt 0:00:21]} Re7 {[%emt 0:00:14]} 37. Rf8 {[%emt 0:05:15]} Kc6 {[%emt 0:02:36]} 38. f4 {[%emt 0:00:47]} Kc5 {[%emt 0:16:58]} 39. Rc8+ {[%emt 0:01:05]} Kb4 {[%emt 0:00:17]} 40. Rc6 {[%emt 0:00:49]} Kxb3 {[%emt 0:00:17]} 41. Rxb6+ {[%emt 0:30:15]} Kxa4 {[%emt 0:30:08]} 42. Rxd6 {[%emt 0:00:22]} Re1 {[%emt 0:09:44]} 43. Rb6 {[%emt 0:01:29]} Rd1+ {[%emt 0:08:29]} 44. Kc3 {[%emt 0:02:32]} Ka3 {[%emt 0:04:11]} 45. c5 {[%emt 0:01:00]} a4 {[%emt 0:00:27]} 46. c6 {[%emt 0:00:47]} Rc1+ {[%emt 0:01:01]} 47. Kd4 {[%emt 0:00:59]} Ka2 {[%emt 0:02:22]} 48. Kd5 {[%emt 0:00:12]} a3 {[%emt 0:02:16]} 49. Rb7 {[%emt 0:26:42]} Rb1 {[%emt 0:00:00]} 50. c7 {[%emt 0:00:00]} Rxb7 {[%emt 0:00:00]} 51. c8=Q {[%emt 0:00:00]} Rb2 {[%emt 0:00:00]} 52. Qc4+ {[%emt 0:00:00]} Kb1 {[%emt 0:00:00]} 53. Qd3+ {[%emt 0:00:00]} Ka2 {[%emt 0:00:00]} 54. g4 {[%emt 0:00:00]} Rb8 {[%emt 0:01:39]} 55. Qc2+ {[%emt 0:00:00]} Ka1 {[%emt 0:00:47]} 56. Qc3+ {[%emt 0:00:00]} Ka2 {[%emt 0:00:20]} 57. f5 {[%emt 0:00:00]} gxf5 {[%emt 0:01:24]} 58. gxf5 {[%emt 0:00:00]} Ra8 {[%emt 0:02:17]} 59. Qc2+ {[%emt 0:00:00]} Ka1 {[%emt 0:00:12]} 60. f6 {[%emt 0:00:00]} h5 {[%emt 0:02:33]} 61. f7 {[%emt 0:00:00]} h4 {[%emt 0:00:28]} 62. Qc1+ {[%emt 0:00:00]} Ka2 {[%emt 0:00:04]} 63. Qc5 {[%emt 0:00:00]} h3 {[%emt 0:03:35]} 64. f8=Q {[%emt 0:00:00]} Rxf8 {[%emt 0:00:23]} 65. Qxf8 {[%emt 0:00:00]} Kb2 {[%emt 0:00:05]} 66. Qf2+ {[%emt 0:00:00]} Kb1 {[%emt 0:00:38]} 67. Kc4 {[%emt 0:00:00]} 1-0

[Event "Summer Prague Open-A 2022"]
[Site "Prague"]
[Date "2022.08.08"]
[Round "5.23"]
[White "Philipp, Mathias"]
[Black "Kundin, Alexander"]
[Result "1-0"]
[ECO "B30"]
[WhiteElo "2092"]
[BlackElo "2305"]
[Annotator "RC"]
[PlyCount "63"]
[EventDate "2022.08.05"]
[EventType "swiss"]
[EventCountry "CZE"]
[SourceTitle "playchess.com"]
[Source "ChessBase"]
[SourceQuality "1"]
[TimeControl "40/5400+30:1800+30"]

1. e4 c5 {[%emt 0:00:03]} 2. Nf3 {[%emt 0:00:22]} Nc6 {[%emt 0:00:07]} 3. Bb5 {[%emt 0:00:04]} e6 {[%emt 0:00:08]} 4. O-O {[%emt 0:00:04]} Nge7 {[%emt 0:00:03]} 5. Re1 {[%emt 0:00:04]} Nd4 {[%emt 0:00:04]} 6. Nxd4 {[%emt 0:00:22]} cxd4 {[%emt 0:00:02]} 7. c3 {[%emt 0:00:17]} Nc6 {[%emt 0:03:02]} 8. b4 {[%emt 0:00:51]} Bd6 {[%emt 0:05:36]} 9. Bf1 {[%emt 0:02:00]} Be5 {[%emt 0:07:44]} 10. b5 {[%emt 0:04:22]} dxc3 {[%emt 0:16:34]} 11. dxc3 {[%emt 0:01:47]} Ne7 {[%emt 0:00:06]} 12. f4 {[%emt 0:05:42]} Bb8 {[%emt 0:02:35]} 13. Be3 {[%emt 0:03:03]} O-O {[%emt 0:04:44]} 14. Nd2 {[%emt 0:02:45]} f5 {[%emt 0:18:20]} 15. e5 {[%emt 0:11:24]} Nd5 {[%emt 0:01:19]} 16. Nc4 {[%emt 0:06:17]} Nxc3 {[%emt 0:04:03]} 17. Qb3 {[%emt 0:01:30]} Nd5 {[%emt 0:15:14]} 18. Bc5 {[%emt 0:24:01]} Nxf4 {[%emt 0:00:03]} 19. Bxf8 {[%emt 0:00:07]} Qxf8 {[%emt 0:00:02]} 20. g3 {[%emt 0:01:39]} Nd5 {[%emt 0:01:13]} 21. Bg2 {[%emt 0:00:49]} Nb6 {[%emt 0:13:37]} 22. Rac1 {[%emt 0:06:16]} d5 {[%emt 0:01:07]} 23. exd6 {[%emt 0:01:24]} Nxc4 {[%emt 0:03:13]} 24. Qxc4 {[%emt 0:00:39]} Bxd6 {[%emt 0:00:04]} 25. Red1 {[%emt 0:00:45]} Rb8 {[%emt 0:00:48]} 26. Qd4 {[%emt 0:01:49]} Ba3 {[%emt 0:00:06]} 27. Rc7 {[%emt 0:00:06]} b6 {[%emt 0:01:15]} 28. Qd8 {[%emt 0:00:35]} Bc5+ {[%emt 0:01:55]} 29. Kf1 {[%emt 0:00:27]} f4 {[%emt 0:01:05]} 30. Qxf8+ {[%emt 0:00:13]} Bxf8 {[%emt 0:00:02]} 31. gxf4 {[%emt 0:00:45]} e5 {[%emt 0:00:31]} 32. Rd8 {[%emt 0:00:11]} 1-0

[Event "Summer Prague Open-A 2022"]
[Site "Prague"]
[Date "2022.08.08"]
[Round "5.24"]
[White "Pap, Gyula"]
[Black "Lahlum, Hans Olav"]
[Result "1-0"]
[ECO "C00"]
[WhiteElo "2481"]
[BlackElo "2109"]
[Annotator "TA"]
[PlyCount "97"]
[EventDate "2022.08.05"]
[EventType "swiss"]
[EventCountry "CZE"]
[SourceTitle "playchess.com"]
[Source "ChessBase"]
[SourceQuality "1"]
[TimeControl "40/5400+30:1800+30"]

{[%evp 9,97,-20,-5,-33,-27,-19,0,0,0,-9,0,0,0,-13,0,-16,-2,-25,82,94,113,101,109,120,142,141,133,133,133,141,147,146,148,142,143,0,0,0,141,139,174,158,176,153,155,143,193,129,113,116,113,113,145,121,153,0,149,108,115,122,301,307,316,316,485,481,471,468,549,541,710,707,712,714,1451,1429,1308,1211,1176,1209,1199,1183,1123,1131,1145,1122,1073,994,29990,29991]} 1. e4 {[%emt 0:00:59]} e6 {[%emt 0:00:05]} 2. e5 {[%emt 0:01:13]} c5 {[%emt 0:02:53]} 3. f4 {[%emt 0:03:41]} Nc6 {[%emt 0:00:33]} 4. Nf3 {[%emt 0:00:29]} a6 {[%emt 0:06:01]} 5. g3 {[%emt 0:05:16]} d5 {[%emt 0:02:23]} 6. Bg2 {[%emt 0:04:18] C00: French: Unusual White 2nd moves.} Nh6 {[%emt 0:01:47]} 7. d3 {[%emt 0:15:08]} Be7 {[%emt 0:01:36]} 8. O-O {[%emt 0:05:04] [#] The position is equal.} O-O $146 {[%emt 0:00:49]} ({Predecessor:} 8... Bd7 9. c3 Qc7 10. Qe2 O-O-O 11. Kh1 f6 12. Re1 Rde8 13. Nbd2 fxe5 14. Nxe5 Nxe5 15. fxe5 {0-1 (30) Roignot,P (2029)-Riff,J (2481) St Chely d'Aubrac 2008}) 9. h3 {[%emt 0:04:54]} f6 {[%emt 0:03:39]} 10. exf6 {[%emt 0:00:37]} Bxf6 {[%emt 0:00:48]} 11. g4 {[%emt 0:00:16]} Nf7 {[%emt 0:02:22]} 12. c4 {[%emt 0:06:59]} b5 {[%emt 0:16:57]} 13. Nc3 {[%emt 0:05:07]} b4 {[%emt 0:06:13]} (13... Bb7 $11 {remains equal.}) 14. Na4 $16 {[%emt 0:01:49]} Qd6 {[%emt 0:00:34]} 15. Be3 {[%emt 0:03:05]} d4 {[%emt 0:01:39]} 16. Bf2 {[%emt 0:08:04]} Bb7 {[%emt 0:04:15]} 17. Nd2 {[%emt 0:01:26] aiming for Ne4.} Na5 {[%emt 0:00:28] [#]} 18. Bxb7 $1 {[%emt 0:03:44]} ({Resist} 18. Ne4 $6 Bxe4 19. Bxe4 Qxf4 $11) 18... Nxb7 {[%emt 0:00:04]} 19. Qf3 {[%emt 0:00:08]} Qc7 {[%emt 0:01:39]} 20. Rae1 {[%emt 0:01:25]} Rae8 {[%emt 0:03:02]} 21. Bg3 {[%emt 0:00:53]} Qd7 {[%emt 0:04:22]} 22. Nb6 {[%emt 0:00:51]} Qc7 {[%emt 0:00:13]} 23. Na4 {[%emt 0:00:08]} Qd7 $1 {[%emt 0:00:06]} 24. b3 {[%emt 0:00:43]} Nfd6 {[%emt 0:05:15]} 25. Qg2 {[%emt 0:04:13]} Kh8 {[%emt 0:00:30]} 26. Nf3 {[%emt 0:02:54][%cal Bd2f3,Bf3g5,Bg5e4][%mdl 32]} Nf7 {[%emt 0:02:07]} 27. Re2 {[%emt 0:01:25]} Bd8 {[%emt 0:03:15]} (27... Be7 $16 {was worth a try.} 28. Nd2 Nfd8) 28. h4 {[%emt 0:06:12]} (28. Ne5 $18 Nxe5 29. Rxe5) 28... Bc7 {[%emt 0:02:34]} 29. Ng5 {[%emt 0:01:31]} Bd6 {[%emt 0:01:28]} 30. Ne4 {[%emt 0:05:14] 0x0.001681e0694fdp-1022s more active pieces.} Be7 {[%emt 0:06:54]} 31. Bh2 {[%emt 0:02:47]} Qc6 {[%emt 0:02:43]} 32. Bg3 {[%emt 0:01:31]} Qd7 $1 {[%emt 0:01:25]} 33. Nd2 {[%emt 0:01:22] And now f5 would win.} Bd6 {[%emt 0:00:36]} 34. Bh2 {[%emt 0:00:42]} Be7 $2 {[%emt 0:01:06] [#] This costs Black the game.} (34... Qe7 $16) 35. Nb6 $1 $18 {[%emt 0:02:08]} Qc7 {[%emt 0:02:21]} 36. Rxe6 {[%emt 0:00:07] Strongly threatening Rfe1.} Nfd8 {[%emt 0:04:56]} (36... Bd6 {is a better defense.}) 37. Nd5 $1 {[%emt 0:00:40][%csl LRa6,LRc7]} Qd7 {[%emt 0:00:18]} 38. Rxa6 {[%emt 0:01:06]} ({Not} 38. Rxe7 Rxe7 39. Nxe7 Qxe7 $18) 38... Bxh4 {[%emt 0:01:17]} 39. Ne4 {[%emt 0:00:53]} Be7 {[%emt 0:00:57]} 40. f5 {[%emt 0:00:34]} Nf7 {[%emt 0:01:57]} 41. f6 {[%emt 0:02:24]} Bd6 {[%emt 0:02:43]} 42. fxg7+ {[%emt 0:00:25]} Kxg7 {[%emt 0:00:05]} 43. Ndf6 {[%emt 0:00:13]} Qe7 {[%emt 0:02:30]} 44. Nxe8+ {[%emt 0:00:28]} Rxe8 {[%emt 0:00:05] [#]} 45. Rxf7+ $1 {[%emt 0:00:14]} Qxf7 {[%emt 0:00:41]} 46. Bxd6 {[%emt 0:00:09]} Nxd6 {[%emt 0:00:30]} 47. Rxd6 {[%emt 0:00:08]} Qf4 {[%emt 0:00:58]} 48. Rd7+ {[%emt 0:01:20]} Kh8 {[%emt 0:01:01]} 49. Qh3 {Weighted Error Value: White=0.14 (very precise) /Black=0.40} 1-0

[Event "Summer Prague Open-A 2022"]
[Site "Prague"]
[Date "2022.08.09"]
[Round "6.1"]
[White "Sarkar, Justin"]
[Black "Mirzoev, Azer"]
[Result "1/2-1/2"]
[ECO "B12"]
[WhiteElo "2346"]
[BlackElo "2424"]
[Annotator "RC"]
[PlyCount "34"]
[EventDate "2022.08.05"]
[EventType "swiss"]
[EventCountry "CZE"]
[SourceTitle "playchess.com"]
[Source "ChessBase"]
[SourceQuality "1"]
[TimeControl "40/5400+30:1800+30"]

1. e4 {[%emt 0:00:22]} c6 {[%emt 0:00:07]} 2. d4 {[%emt 0:00:13]} d5 {[%emt 0:00:06]} 3. e5 {[%emt 0:00:45]} Bf5 {[%emt 0:00:06]} 4. h4 {[%emt 0:01:41]} a6 {[%emt 0:00:21]} 5. g4 {[%emt 0:04:24]} Bd7 {[%emt 0:00:30]} 6. c4 {[%emt 0:00:42]} Qc8 {[%emt 0:04:06]} 7. cxd5 {[%emt 0:07:12]} cxd5 {[%emt 0:00:10]} 8. Be2 {[%emt 0:01:17]} Nc6 {[%emt 0:00:49]} 9. Nc3 {[%emt 0:01:44]} e6 {[%emt 0:00:33]} 10. Be3 {[%emt 0:00:26]} h5 {[%emt 0:00:12]} 11. gxh5 {[%emt 0:00:41]} Nh6 {[%emt 0:00:41]} 12. Bd3 {[%emt 0:03:19]} Nb4 {[%emt 0:06:27]} 13. Bb1 {[%emt 0:01:19]} Qc7 {[%emt 0:00:13]} 14. Nge2 {[%emt 0:10:26]} Nc6 {[%emt 0:01:19]} 15. Bd3 {[%emt 0:01:28]} Nb4 {[%emt 0:00:35]} 16. Bb1 {[%emt 0:00:59]} Nc6 {[%emt 0:01:00]} 17. Bd3 {[%emt 0:02:12]} Nb4 {[%emt 0:00:10]} 1/2-1/2

[Event "Summer Prague Open-A 2022"]
[Site "Prague"]
[Date "2022.08.09"]
[Round "6.2"]
[White "Cernousek, Lukas"]
[Black "Brejnik, Gustav"]
[Result "1/2-1/2"]
[ECO "B13"]
[WhiteElo "2429"]
[BlackElo "2292"]
[Annotator "TA"]
[PlyCount "54"]
[EventDate "2022.08.05"]
[EventType "swiss"]
[EventCountry "CZE"]
[SourceTitle "playchess.com"]
[Source "ChessBase"]
[SourceQuality "1"]
[TimeControl "40/5400+30:1800+30"]

{[%evp 11,54,23,31,25,38,40,32,31,51,52,45,50,56,57,56,56,57,56,65,64,65,50,60,0,0,-3,65,0,0,0,0,0,-7,-74,-22,-21,-25,-33,0,-55,0,0,0,0,0]} 1. e4 {[%emt 0:00:04]} c6 {[%emt 0:00:06]} 2. d4 {[%emt 0:00:13]} d5 {[%emt 0:00:05]} 3. exd5 {[%emt 0:00:12]} cxd5 {[%emt 0:00:06]} 4. Bd3 {[%emt 0:00:06]} Nc6 {[%emt 0:00:05]} 5. c3 {[%emt 0:00:07]} Qc7 {[%emt 0:00:50]} 6. h3 {[%emt 0:00:08]} g6 {[%emt 0:00:42]} 7. Ne2 {[%emt 0:00:14][%cal Bg1e2,Be2g3,Bg3h5][%mdl 32] B13: Caro-Kann: Exchange Variation and Panov-Botvinnik Attack.} Bf5 {[%emt 0:00:37]} 8. Bxf5 {[%emt 0:00:16]} gxf5 {[%emt 0:00:06]} 9. Bf4 {[%emt 0:00:14] White is slightly better.} Qd7 {[%emt 0:00:18]} 10. Nd2 {[%emt 0:00:10]} e6 {[%emt 0:01:58]} 11. g4 {[%emt 0:00:28]} Nge7 {[%emt 0:18:01]} 12. Ng3 {[%emt 0:00:08]} Ng6 {[%emt 0:06:15]} 13. Bg5 {[%emt 0:00:07]} Be7 {[%emt 0:08:16]} 14. Bxe7 {[%emt 0:00:07]} Ncxe7 {[%emt 0:00:17]} 15. gxf5 {[%emt 0:00:08]} exf5 {[%emt 0:00:24] [#]} 16. Nh5 $146 {[%emt 0:28:02]} ({Predecessor:} 16. Qe2 Qe6 17. O-O-O f4 18. Qb5+ Kf8 19. Rde1 Qf6 20. Nh5 Qf5 21. Qe2 Rc8 22. Qg4 {1-0 (60) Livaic,L (2508)-Ratkovic,M (2499) Vrnjacka Banja 2021}) 16... Qe6+ {[%emt 0:03:42]} 17. Kf1 {[%emt 0:10:16]} (17. Qe2 $14 O-O-O 18. Qxe6+ fxe6 19. O-O-O) 17... O-O-O $11 {[%emt 0:07:20]} 18. Qe2 {[%emt 0:18:31]} Nh4 {[%emt 0:20:20]} (18... Qc6 $11) 19. Re1 {[%emt 0:15:14]} (19. Qxe6+ $1 $14 fxe6 20. Re1) 19... Qh6 {[%emt 0:01:03] White must now prevent ...Rde8.} 20. Qxe7 {[%emt 0:22:30]} Qxh5 {[%emt 0:00:10]} 21. Qe2 {[%emt 0:00:05]} Qh6 {[%emt 0:01:56] [#] Hoping for ...Rhg8.} 22. Qd3 {[%emt 0:01:32]} (22. Rg1 $11) 22... Rhe8 {[%emt 0:01:30]} (22... Rhg8 $17 {...Qg5 is the strong threat.} 23. Nf3 Rde8) 23. Rg1 {[%emt 0:02:13][%cal Od3b5] Inhibits Qg5.} Qh5 {[%emt 0:04:29]} 24. Re2 {[%emt 0:00:49]} f4 {[%emt 0:05:59]} 25. Rg4 {[%emt 0:00:23]} (25. Rg7 $11) 25... f5 {[%emt 0:02:25]} ({Better is} 25... Ng6 $1 $15) 26. Rg7 {[%emt 0:00:34]} ({Much worse is} 26. Rxh4 Qxh4 27. Qxf5+ Kb8 $17) 26... Rg8 {[%emt 0:02:56]} 27. Rxb7 {[%emt 0:00:33] The board is on fire.} Kxb7 {[%emt 0:10:55] Weighted Error Value: White=0.17 (very precise) /Black=0.17 (very precise)} 1/2-1/2

[Event "Summer Prague Open-A 2022"]
[Site "Prague"]
[Date "2022.08.09"]
[Round "6.3"]
[White "Kulhanek, Tomas"]
[Black "Risting, Eivind Olav"]
[Result "1/2-1/2"]
[ECO "B51"]
[WhiteElo "2319"]
[BlackElo "2325"]
[Annotator "TA"]
[PlyCount "54"]
[EventDate "2022.08.05"]
[EventType "swiss"]
[EventCountry "CZE"]
[SourceTitle "playchess.com"]
[Source "ChessBase"]
[SourceQuality "1"]
[TimeControl "40/5400+30:1800+30"]

{[%evp 9,54,4,21,29,30,24,43,19,10,17,29,22,19,14,12,0,0,0,0,-21,-1,-38,-26,-24,-19,-34,-6,-9,0,-27,-25,-18,0,0,-8,-19,18,13,20,-8,-1,0,-4,-10,-14,-12,-28]} 1. e4 {[%emt 0:01:04]} c5 {[%emt 0:00:13]} 2. Nf3 {[%emt 0:00:23]} d6 {[%emt 0:00:40]} 3. Bb5+ {[%emt 0:01:50]} Nd7 {[%emt 0:00:24]} 4. a4 {[%emt 0:01:26]} Ngf6 {[%emt 0:03:37]} 5. Nc3 {[%emt 0:02:15]} g6 {[%emt 0:04:35]} 6. O-O {[%emt 0:01:10] B51: Sicilian: Moscow Variation (3 Bb5+) without 3...Bd7.} Bg7 {[%emt 0:00:18]} 7. Re1 {[%emt 0:02:45]} O-O {[%emt 0:02:49]} 8. d4 {[%emt 0:00:30] White is slightly better.} cxd4 {[%emt 0:00:31]} 9. Nxd4 {[%emt 0:00:28]} a6 {[%emt 0:05:03]} 10. Bf1 {[%emt 0:00:15]} Nc5 {[%emt 0:12:15]} 11. h3 {[%emt 0:01:20] [#]} Re8 $146 {[%emt 0:02:11]} ({Predecessor:} 11... Bd7 12. a5 Re8 13. Bg5 h6 14. Bh4 b5 15. b4 Ne6 16. Nxe6 Bxe6 17. Nd5 g5 {0-1 (51) Motylev,A (2675)-Giri,A (2772) Tbilisi 2017}) 12. a5 {[%emt 0:04:21]} b6 {[%emt 0:08:13]} 13. b4 {[%emt 0:13:45]} Ncd7 {[%emt 0:05:10]} 14. Be3 {[%emt 0:14:40]} Bb7 {[%emt 0:03:33] Prevents Nd5.} 15. f3 {[%emt 0:02:47]} Qc7 {[%emt 0:02:22]} 16. Qd2 {[%emt 0:02:29]} Rec8 {[%emt 0:15:26]} 17. Ra3 {[%emt 0:10:49]} bxa5 {[%emt 0:09:24]} 18. bxa5 {[%emt 0:00:03]} Nc5 {[%emt 0:04:49]} 19. Nde2 {[%emt 0:10:33]} e6 {[%emt 0:01:10]} 20. Nf4 {[%emt 0:03:33]} Rd8 {[%emt 0:00:41] The position is equal.} 21. Na4 {[%emt 0:05:03]} Nfd7 {[%emt 0:02:26]} 22. Rb1 {[%emt 0:05:28]} Bc6 {[%emt 0:02:56]} 23. Nb6 {[%emt 0:02:12]} Rab8 {[%emt 0:01:11][%cal Rd7b6]} 24. Qe1 {[%emt 0:00:19]} Nxb6 {[%emt 0:01:37]} 25. axb6 {[%emt 0:00:17]} Rxb6 {[%emt 0:03:05]} 26. Rxb6 {[%emt 0:00:44]} Qxb6 {[%emt 0:02:26]} 27. Rxa6 {[%emt 0:00:09]} Qb7 {[%emt 0:00:27] Weighted Error Value: White=0.10 (very precise) /Black=0.08 (flawless)} 1/2-1/2

[Event "Summer Prague Open-A 2022"]
[Site "Prague"]
[Date "2022.08.09"]
[Round "6.4"]
[White "Schmaltz, Roland"]
[Black "Kvaloy, Aksel Bu"]
[Result "0-1"]
[ECO "B32"]
[WhiteElo "2466"]
[BlackElo "2289"]
[Annotator "TA"]
[PlyCount "53"]
[EventDate "2022.08.05"]
[EventType "swiss"]
[EventCountry "CZE"]
[SourceTitle "playchess.com"]
[Source "ChessBase"]
[SourceQuality "1"]
[TimeControl "40/5400+30:1800+30"]

{[%evp 21,53,55,62,71,136,139,217,221,245,149,143,115,145,139,145,143,144,145,148,150,143,146,150,139,427,430,421,35,26,47,39,-231,-175,-177]} 1. e4 {[%emt 0:30:22]} c5 {[%emt 0:00:20]} 2. Nf3 {[%emt 0:00:17]} Nc6 {[%emt 0:00:21]} 3. d4 {[%emt 0:00:04]} cxd4 {[%emt 0:00:09]} 4. Nxd4 {[%emt 0:00:01]} e5 {[%emt 0:00:37]} 5. Nb5 {[%emt 0:00:04]} a6 {[%emt 0:00:30]} 6. Nd6+ {[%emt 0:00:04]} Bxd6 {[%emt 0:00:11]} 7. Qxd6 {[%emt 0:00:40]} Qf6 {[%emt 0:00:18]} 8. Qc7 {[%emt 0:00:02]} Nge7 {[%emt 0:00:47]} 9. Nc3 {[%emt 0:00:22]} Nb4 {[%emt 0:01:09]} 10. Bd3 {[%emt 0:00:07]} d5 {[%emt 0:00:37]} 11. O-O {[%emt 0:01:18]} O-O {[%emt 0:11:11]} 12. f4 $1 {[%emt 0:01:10] B32: Sicilian: Löwenthal and Kalashnikov Variations.} exf4 {[%emt 0:01:47]} (12... Re8 $142) 13. Bxf4 $16 {[%emt 0:02:12] Black must now prevent Bd6.} dxe4 {[%emt 0:07:37]} (13... Nxd3 $16 14. cxd3 Re8) 14. Bxe4 $18 {[%emt 0:09:42] White is clearly better.} Bf5 {[%emt 0:13:59] [#]} 15. Qc5 $146 {[%emt 0:11:51]} (15. Bxb7 $6 Rad8 $16) (15. Qxb7 $6 Qd4+ 16. Rf2 Bxe4 17. Qxe4 Qxe4 18. Nxe4 Rac8 $16) ({Predecessor:} 15. Bd6 Qd4+ 16. Kh1 Bxe4 17. Rad1 Bxg2+ 18. Kxg2 Qg4+ 19. Kh1 Ned5 20. Qxb7 Ne3 21. Bxf8 Rxf8 22. Qxf7+ {1-0 (22) Gutierrez Delgado,Y (2304)-Alejandre Plasencia,R (2060) Santa Clara 2022}) 15... Nbc6 {[%emt 0:09:45]} 16. Be3 {[%emt 0:16:09][%cal Re4f5] A strong pair of Bishops.} b6 {[%emt 0:01:46]} 17. Qxb6 {[%emt 0:00:36]} Qe6 {[%emt 0:00:46]} 18. Bxf5 {[%emt 0:06:17]} (18. Rxf5 Nxf5 19. Bxf5 (19. Qxc6 Qxc6 20. Bxc6 Rac8 $14) 19... Qxf5 $16) 18... Nxf5 {[%emt 0:00:06]} 19. Rae1 {[%emt 0:01:13][%cal Ba1e1,Be1e3,Be3g3][%mdl 32]} (19. Rxf5 Qxf5 20. Qxc6 Qxc2 $16) 19... Rab8 {[%emt 0:03:22]} 20. Qc5 {[%emt 0:00:23] aiming for Bf4.} Nxe3 {[%emt 0:00:45]} 21. Rxe3 {[%emt 0:00:07]} Qd7 {[%emt 0:00:36]} 22. Nd5 {[%emt 0:00:55][%cal Oc5c6] And now Qxc6! would win.} Rfc8 {[%emt 0:01:14][%mdl 8192]} (22... Rfe8 $16) 23. Rg3 $1 {[%emt 0:11:09]} Kh8 {[%emt 0:03:31] [#]} 24. Qc3 $2 {[%emt 0:00:58]} f6 $14 {[%emt 0:00:42] [#]} 25. Rxf6 $1 {[%emt 0:06:05][%cal Of6d6] Strongly threatening Rd6!} Qa7+ {[%emt 0:15:46]} (25... Qxd5 $2 {[#] gets mated.} 26. Rf8+ $3 {[%mdl 512]} Rxf8 27. Qxg7#) 26. Kh1 $2 {[%emt 0:00:41][%mdl 8192]} (26. Rf2 $1 $14 {was forced to keep a grip.}) 26... Nd4 {[%emt 0:01:23]} 27. Rxa6 {Weighted Error Value: White=0.52/Black=0.33} 0-1

[Event "Summer Prague Open-A 2022"]
[Site "Prague"]
[Date "2022.08.09"]
[Round "6.5"]
[White "Karas, Marek"]
[Black "Lalic, Bogdan"]
[Result "1/2-1/2"]
[ECO "E12"]
[WhiteElo "2286"]
[BlackElo "2412"]
[Annotator "RC"]
[PlyCount "21"]
[EventDate "2022.08.05"]
[EventType "swiss"]
[EventCountry "CZE"]
[SourceTitle "playchess.com"]
[Source "ChessBase"]
[SourceQuality "1"]
[TimeControl "40/5400+30:1800+30"]

1. Nf3 {[%emt 0:00:03]} Nf6 {[%emt 0:11:24]} 2. c4 {[%emt 0:00:07]} b6 {[%emt 0:00:18]} 3. d4 {[%emt 0:00:48]} e6 {[%emt 0:00:22]} 4. a3 {[%emt 0:00:06]} Ba6 {[%emt 0:00:55]} 5. Qc2 {[%emt 0:00:07]} Bb7 {[%emt 0:00:14]} 6. Nc3 {[%emt 0:00:08]} c5 {[%emt 0:00:10]} 7. e4 {[%emt 0:00:06]} cxd4 {[%emt 0:00:09]} 8. Nxd4 {[%emt 0:00:07]} Nc6 {[%emt 0:02:49]} 9. Nxc6 {[%emt 0:00:06]} Bxc6 {[%emt 0:00:05]} 10. Bf4 {[%emt 0:00:08]} Bc5 {[%emt 0:02:02]} 11. Be2 {[%emt 0:03:30]} 1/2-1/2